[Event "*** SCC Grand Prix: Titled Tuesday Blitz"]
[Site "Chess.com"]
[Date "2020.08.25"]
[Round "5"]
[White "Kassimov_B"]
[Black "Azatic"]
[Result "1-0"]
[WhiteElo "2428"]
[BlackElo "2569"]
[TimeControl "180+1"]
[EndTime "10:55:07 PDT"]
[Termination "Kassimov_B won by resignation"]

1. e4 {[%clk 0:03:00.9]} 1... c5 {[%clk 0:02:59.6]} 2. Nf3 {[%clk 0:02:59]} 2...
e6 {[%clk 0:02:59.9]} 3. g3 {[%clk 0:02:56.4]} 3... Nc6 {[%clk 0:02:59.5]} 4.
Bg2 {[%clk 0:02:55.9]} 4... Nf6 {[%clk 0:03:00]} 5. d3 {[%clk 0:02:53.8]} 5...
d6 {[%clk 0:02:59.7]} 6. O-O {[%clk 0:02:53.6]} 6... Be7 {[%clk 0:03:00]} 7. Nc3
{[%clk 0:02:51.5]} 7... a6 {[%clk 0:02:59.5]} 8. Ne1 {[%clk 0:02:48]} 8... Qc7
{[%clk 0:02:57.4]} 9. f4 {[%clk 0:02:48]} 9... b5 {[%clk 0:02:55.5]} 10. g4
{[%clk 0:02:44.7]} 10... b4 {[%clk 0:02:49.3]} 11. Na4 {[%clk 0:02:38.2]} 11...
d5 {[%clk 0:02:42.3]} 12. g5 {[%clk 0:02:30.8]} 12... Nd7 {[%clk 0:02:42.4]} 13.
exd5 {[%clk 0:02:30.6]} 13... exd5 {[%clk 0:02:43.3]} 14. Bxd5 {[%clk
0:02:30.3]} 14... Bb7 {[%clk 0:02:35.5]} 15. Nf3 {[%clk 0:02:14.5]} 15... O-O-O
{[%clk 0:02:15.4]} 16. c4 {[%clk 0:02:08.3]} 16... bxc3 {[%clk 0:02:11.3]} 17.
bxc3 {[%clk 0:02:07.8]} 17... Nb6 {[%clk 0:01:59.9]} 18. Nxb6+ {[%clk
0:02:06.2]} 18... Qxb6 {[%clk 0:02:00.8]} 19. Be4 {[%clk 0:01:57.8]} 19... Kb8
{[%clk 0:01:17.2]} 20. Be3 {[%clk 0:01:55.9]} 20... Ka8 {[%clk 0:01:03.4]} 21.
Rb1 {[%clk 0:01:54.7]} 21... Qc7 {[%clk 0:01:03.6]} 22. Rxb7 {[%clk 0:01:50.6]}
22... Kxb7 {[%clk 0:01:01.9]} 23. Ne5 {[%clk 0:01:47.6]} 23... Rd6 {[%clk
0:01:01.8]} 24. Qa4 {[%clk 0:01:45]} 24... Rc8 {[%clk 0:00:54.2]} 25. Rb1+
{[%clk 0:01:37.1]} 25... Ka8 {[%clk 0:00:52.5]} 26. Qxa6+ {[%clk 0:01:23.7]}
26... Qa7 {[%clk 0:00:52.3]} 27. Qxc8+ {[%clk 0:01:23]} 1-0

[Event "*** SCC Grand Prix: Titled Tuesday Blitz"]
[Site "Chess.com"]
[Date "2020.08.25"]
[Round "5"]
[White "chessdjw"]
[Black "eCztery"]
[Result "1-0"]
[WhiteElo "2587"]
[BlackElo "2414"]
[TimeControl "180+1"]
[EndTime "10:55:08 PDT"]
[Termination "chessdjw won by resignation"]

1. d4 {[%clk 0:02:40]} 1... Nf6 {[%clk 0:02:56.6]} 2. c4 {[%clk 0:02:39.7]} 2...
e6 {[%clk 0:02:46.9]} 3. Nc3 {[%clk 0:02:40.1]} 3... d5 {[%clk 0:02:46.8]} 4.
cxd5 {[%clk 0:02:37.9]} 4... exd5 {[%clk 0:02:47.7]} 5. Bg5 {[%clk 0:02:38.1]}
5... Nbd7 {[%clk 0:02:45.1]} 6. e3 {[%clk 0:02:38.1]} 6... Bb4 {[%clk
0:02:41.6]} 7. Bd3 {[%clk 0:02:38.2]} 7... O-O {[%clk 0:02:41.7]} 8. Ne2 {[%clk
0:02:38]} 8... h6 {[%clk 0:02:39.9]} 9. Bh4 {[%clk 0:02:37.6]} 9... Bd6 {[%clk
0:02:39.8]} 10. O-O {[%clk 0:02:29.8]} 10... c6 {[%clk 0:02:01.4]} 11. f3 {[%clk
0:02:28.2]} 11... Qe7 {[%clk 0:01:59.1]} 12. Bf2 {[%clk 0:02:22]} 12... Nb6
{[%clk 0:01:55.8]} 13. Qc2 {[%clk 0:02:20.7]} 13... Re8 {[%clk 0:01:55.5]} 14.
Rae1 {[%clk 0:02:19.6]} 14... Bd7 {[%clk 0:01:54.4]} 15. Ng3 {[%clk 0:02:18.7]}
15... Rad8 {[%clk 0:01:54.3]} 16. Nf5 {[%clk 0:02:18.1]} 16... Bxf5 {[%clk
0:01:54.9]} 17. Bxf5 {[%clk 0:02:17.7]} 17... Bb8 {[%clk 0:01:50.8]} 18. g3
{[%clk 0:02:08.8]} 18... Nc4 {[%clk 0:01:50.1]} 19. Bd3 {[%clk 0:02:04.1]} 19...
Nd6 {[%clk 0:01:49.6]} 20. Kg2 {[%clk 0:02:00.5]} 20... g6 {[%clk 0:01:43.2]}
21. e4 {[%clk 0:01:52.4]} 21... dxe4 {[%clk 0:01:42.6]} 22. fxe4 {[%clk
0:01:52.6]} 22... Ng4 {[%clk 0:01:42.4]} 23. e5 {[%clk 0:01:48.5]} 23... Nb5
{[%clk 0:01:37.5]} 24. Nxb5 {[%clk 0:01:45.5]} 24... cxb5 {[%clk 0:01:38.4]} 25.
Bxb5 {[%clk 0:01:45.6]} 25... Rc8 {[%clk 0:01:33.8]} 26. Qe4 {[%clk 0:01:40.5]}
26... Nxf2 {[%clk 0:01:30.7]} 27. Rxf2 {[%clk 0:01:40.6]} 27... Red8 {[%clk
0:01:31.1]} 28. Ref1 {[%clk 0:01:35.3]} 28... Rf8 {[%clk 0:01:29.4]} 29. Ba4
{[%clk 0:01:29.2]} 29... Rc7 {[%clk 0:01:25.5]} 30. Bb3 {[%clk 0:01:29.1]} 30...
Qd8 {[%clk 0:01:24.3]} 31. Qxg6+ {[%clk 0:01:27.3]} 31... Kh8 {[%clk 0:01:23.6]}
32. Qxh6+ {[%clk 0:01:27.3]} 32... Kg8 {[%clk 0:01:24.5]} 33. Rf4 {[%clk
0:01:22.5]} 33... Qc8 {[%clk 0:01:17.3]} 34. Qg5+ {[%clk 0:01:20.5]} 1-0

[Event "*** SCC Grand Prix: Titled Tuesday Blitz"]
[Site "Chess.com"]
[Date "2020.08.25"]
[Round "5"]
[White "seorobert1971"]
[Black "tigra"]
[Result "0-1"]
[WhiteElo "2637"]
[BlackElo "2895"]
[TimeControl "180+1"]
[EndTime "10:55:10 PDT"]
[Termination "tigra won by resignation"]

1. c4 {[%clk 0:03:00.9]} 1... e5 {[%clk 0:02:59.7]} 2. Nc3 {[%clk 0:03:00.9]}
2... Nc6 {[%clk 0:02:59.5]} 3. Nf3 {[%clk 0:03:01.2]} 3... g6 {[%clk 0:03:00.1]}
4. g3 {[%clk 0:03:01.3]} 4... Bg7 {[%clk 0:03:00.7]} 5. Bg2 {[%clk 0:03:01.5]}
5... Nge7 {[%clk 0:03:01.4]} 6. O-O {[%clk 0:03:01.4]} 6... O-O {[%clk 0:03:02]}
7. d3 {[%clk 0:03:00.6]} 7... d6 {[%clk 0:03:02.6]} 8. Rb1 {[%clk 0:03:00]} 8...
a5 {[%clk 0:03:02.5]} 9. a3 {[%clk 0:02:59.5]} 9... f5 {[%clk 0:03:02]} 10. Nd2
{[%clk 0:02:58.6]} 10... g5 {[%clk 0:02:59.2]} 11. b4 {[%clk 0:02:57.6]} 11...
axb4 {[%clk 0:02:58.9]} 12. axb4 {[%clk 0:02:58.5]} 12... Ng6 {[%clk 0:02:57.5]}
13. Nd5 {[%clk 0:02:55.3]} 13... Nd4 {[%clk 0:02:56.5]} 14. e3 {[%clk
0:02:48.4]} 14... Ne6 {[%clk 0:02:56.8]} 15. b5 {[%clk 0:02:46.3]} 15... g4
{[%clk 0:02:56.9]} 16. Re1 {[%clk 0:02:41.8]} 16... h5 {[%clk 0:02:55.7]} 17.
Nb3 {[%clk 0:02:39.4]} 17... h4 {[%clk 0:02:49.7]} 18. e4 {[%clk 0:02:27.5]}
18... Nc5 {[%clk 0:02:44.4]} 19. Nxc5 {[%clk 0:02:25.7]} 19... dxc5 {[%clk
0:02:45.3]} 20. exf5 {[%clk 0:02:07.7]} 20... Bxf5 {[%clk 0:02:46.2]} 21. Be3
{[%clk 0:02:07.1]} 21... b6 {[%clk 0:02:43.7]} 22. Qe2 {[%clk 0:02:01.5]} 22...
Qd7 {[%clk 0:02:39]} 23. Rbd1 {[%clk 0:02:00.5]} 23... Ra3 {[%clk 0:02:33.9]}
24. Bc1 {[%clk 0:01:59.1]} 24... Ra1 {[%clk 0:02:30]} 25. Ne3 {[%clk 0:01:56.1]}
25... Be6 {[%clk 0:02:26.8]} 26. Bc6 {[%clk 0:01:46.2]} 26... Qf7 {[%clk
0:02:23.9]} 27. Rf1 {[%clk 0:01:29.4]} 27... e4 {[%clk 0:02:22.3]} 28. Bxe4
{[%clk 0:01:14.8]} 28... Ne5 {[%clk 0:02:22.3]} 29. Bb2 {[%clk 0:01:09.1]} 29...
Ra2 {[%clk 0:02:20.8]} 30. Rb1 {[%clk 0:00:49.2]} 30... hxg3 {[%clk 0:02:20.3]}
31. fxg3 {[%clk 0:00:39.1]} 31... Nf3+ {[%clk 0:02:20.3]} 32. Bxf3 {[%clk
0:00:39.1]} 32... gxf3 {[%clk 0:02:20.1]} 33. Qf2 {[%clk 0:00:39]} 33... Bd4
{[%clk 0:02:17.6]} 34. Rfe1 {[%clk 0:00:36]} 34... Bf5 {[%clk 0:02:13.2]} 35.
Nd1 {[%clk 0:00:21.8]} 35... Bxf2+ {[%clk 0:02:11.8]} 0-1

[Event "*** SCC Grand Prix: Titled Tuesday Blitz"]
[Site "Chess.com"]
[Date "2020.08.25"]
[Round "5"]
[White "Fischerev7"]
[Black "EnergeticHay"]
[Result "1-0"]
[WhiteElo "2349"]
[BlackElo "2192"]
[TimeControl "180+1"]
[EndTime "10:55:11 PDT"]
[Termination "Fischerev7 won by resignation"]

1. e4 {[%clk 0:03:00.9]} 1... c5 {[%clk 0:02:58.8]} 2. Nf3 {[%clk 0:03:00.4]}
2... d6 {[%clk 0:02:57.6]} 3. d4 {[%clk 0:03:00.3]} 3... cxd4 {[%clk 0:02:58.5]}
4. Nxd4 {[%clk 0:03:00.9]} 4... Nf6 {[%clk 0:02:58.5]} 5. Nc3 {[%clk 0:03:01.3]}
5... a6 {[%clk 0:02:57.3]} 6. Be3 {[%clk 0:03:01.8]} 6... e6 {[%clk 0:02:57]} 7.
g4 {[%clk 0:03:01.2]} 7... b5 {[%clk 0:02:54.6]} 8. g5 {[%clk 0:03:00.9]} 8...
Nfd7 {[%clk 0:02:54.3]} 9. a3 {[%clk 0:02:59.3]} 9... Bb7 {[%clk 0:02:53.8]} 10.
f4 {[%clk 0:02:58.4]} 10... Nc6 {[%clk 0:02:50.8]} 11. Nxc6 {[%clk 0:02:58.1]}
11... Bxc6 {[%clk 0:02:51.7]} 12. Bd3 {[%clk 0:02:57.9]} 12... Nc5 {[%clk
0:02:49.3]} 13. Qe2 {[%clk 0:02:56.7]} 13... Be7 {[%clk 0:02:47.6]} 14. h4
{[%clk 0:02:56.1]} 14... d5 {[%clk 0:02:38.1]} 15. exd5 {[%clk 0:02:48]} 15...
Bxd5 {[%clk 0:02:39]} 16. Nxd5 {[%clk 0:02:45.9]} 16... Qxd5 {[%clk 0:02:39.9]}
17. O-O-O {[%clk 0:02:41.7]} 17... O-O-O {[%clk 0:02:36.5]} 18. Bxb5 {[%clk
0:02:07.8]} 18... Qa2 {[%clk 0:02:35]} 19. Bxa6+ {[%clk 0:02:07.8]} 19... Kb8
{[%clk 0:02:34]} 20. c3 {[%clk 0:01:45]} 20... Ka8 {[%clk 0:00:48.9]} 21. Bxc5
{[%clk 0:01:39.8]} 21... Bxc5 {[%clk 0:00:47.8]} 22. Qe4+ {[%clk 0:01:39.9]}
22... Rd5 {[%clk 0:00:46]} 23. Bc4 {[%clk 0:01:23.2]} 1-0

[Event "*** SCC Grand Prix: Titled Tuesday Blitz"]
[Site "Chess.com"]
[Date "2020.08.25"]
[Round "5"]
[White "StellarChessPro"]
[Black "Savva09022009"]
[Result "1-0"]
[WhiteElo "2489"]
[BlackElo "2322"]
[TimeControl "180+1"]
[EndTime "10:55:12 PDT"]
[Termination "StellarChessPro won by resignation"]

1. d4 {[%clk 0:03:00.9]} 1... Nf6 {[%clk 0:02:59.6]} 2. Bg5 {[%clk 0:03:00.7]}
2... Ne4 {[%clk 0:02:56.2]} 3. Bf4 {[%clk 0:03:01.1]} 3... d5 {[%clk 0:02:55.6]}
4. f3 {[%clk 0:03:01.6]} 4... Nf6 {[%clk 0:02:55.4]} 5. e4 {[%clk 0:03:01.7]}
5... dxe4 {[%clk 0:02:54.8]} 6. Nc3 {[%clk 0:03:01.7]} 6... exf3 {[%clk
0:02:52.8]} 7. Nxf3 {[%clk 0:03:02.6]} 7... e6 {[%clk 0:02:52.9]} 8. Bd3 {[%clk
0:03:02.2]} 8... Bd6 {[%clk 0:02:53.2]} 9. Qd2 {[%clk 0:03:02.2]} 9... O-O
{[%clk 0:02:52.6]} 10. O-O-O {[%clk 0:03:02.5]} 10... Nc6 {[%clk 0:02:51.4]} 11.
Bg5 {[%clk 0:03:02.4]} 11... a6 {[%clk 0:02:44.2]} 12. Rdf1 {[%clk 0:03:01.9]}
12... Be7 {[%clk 0:02:41.4]} 13. h4 {[%clk 0:03:01.5]} 13... b5 {[%clk
0:02:40.6]} 14. Ne4 {[%clk 0:03:00.5]} 14... Nxe4 {[%clk 0:02:37.5]} 15. Bxe4
{[%clk 0:03:01.4]} 15... Bb7 {[%clk 0:02:36.8]} 16. Qd3 {[%clk 0:02:57.7]} 16...
f5 {[%clk 0:02:34.7]} 17. Bxc6 {[%clk 0:02:56.6]} 17... Bxc6 {[%clk 0:02:33.9]}
18. Re1 {[%clk 0:02:55.4]} 18... Bd5 {[%clk 0:02:33.8]} 19. b3 {[%clk
0:02:46.7]} 19... c5 {[%clk 0:02:18.3]} 20. dxc5 {[%clk 0:02:42]} 20... Qc7
{[%clk 0:02:15.8]} 21. Bxe7 {[%clk 0:02:27.9]} 21... Bxf3 {[%clk 0:02:08.1]} 22.
Bxf8 {[%clk 0:02:23.6]} 22... Be4 {[%clk 0:02:05]} 23. Rxe4 {[%clk 0:02:07.1]}
23... fxe4 {[%clk 0:02:01.4]} 24. Qxe4 {[%clk 0:02:08]} 24... Rxf8 {[%clk
0:01:59]} 25. Qxe6+ {[%clk 0:01:59.3]} 25... Kh8 {[%clk 0:01:57.3]} 26. Qd6
{[%clk 0:01:59.3]} 26... Qf7 {[%clk 0:01:55.1]} 27. Re1 {[%clk 0:01:54.6]} 27...
a5 {[%clk 0:01:50.6]} 28. c6 {[%clk 0:01:54.4]} 28... a4 {[%clk 0:01:44.2]} 29.
c7 {[%clk 0:01:47.9]} 29... axb3 {[%clk 0:01:35.6]} 30. axb3 {[%clk 0:01:46.9]}
30... Qf2 {[%clk 0:01:31]} 31. Rd1 {[%clk 0:01:36.3]} 31... Qe3+ {[%clk
0:01:18]} 32. Kb1 {[%clk 0:01:36.2]} 32... Ra8 {[%clk 0:00:54.2]} 33. Qd8+
{[%clk 0:01:35.2]} 1-0

[Event "*** SCC Grand Prix: Titled Tuesday Blitz"]
[Site "Chess.com"]
[Date "2020.08.25"]
[Round "5"]
[White "GAusal"]
[Black "Vamostodorecto"]
[Result "1-0"]
[WhiteElo "2170"]
[BlackElo "2318"]
[TimeControl "180+1"]
[EndTime "10:55:12 PDT"]
[Termination "GAusal won by resignation"]

1. e4 {[%clk 0:03:00.9]} 1... e5 {[%clk 0:02:58.9]} 2. Nf3 {[%clk 0:02:59.7]}
2... Nc6 {[%clk 0:02:58.8]} 3. d4 {[%clk 0:02:56.1]} 3... exd4 {[%clk
0:02:46.1]} 4. c3 {[%clk 0:02:54.8]} 4... Nf6 {[%clk 0:02:45.5]} 5. Bd3 {[%clk
0:02:49.4]} 5... d5 {[%clk 0:02:42.6]} 6. e5 {[%clk 0:02:44.7]} 6... Ne4 {[%clk
0:02:41.7]} 7. O-O {[%clk 0:02:37.5]} 7... dxc3 {[%clk 0:02:40.9]} 8. Nxc3
{[%clk 0:02:33.4]} 8... Nxc3 {[%clk 0:02:40.4]} 9. bxc3 {[%clk 0:02:32.9]} 9...
Be7 {[%clk 0:02:41]} 10. Rb1 {[%clk 0:02:27.4]} 10... O-O {[%clk 0:02:39.9]} 11.
Rb5 {[%clk 0:02:21.5]} 11... Be6 {[%clk 0:02:04.9]} 12. Qc2 {[%clk 0:02:19.6]}
12... h6 {[%clk 0:02:03.1]} 13. Rxb7 {[%clk 0:02:14.7]} 13... Bg4 {[%clk
0:01:57.7]} 14. Qa4 {[%clk 0:02:07.9]} 14... Qe8 {[%clk 0:01:41.8]} 15. Qxg4
{[%clk 0:01:57.3]} 15... f5 {[%clk 0:01:14.2]} 16. Bxf5 {[%clk 0:01:50.6]} 16...
Bc5 {[%clk 0:01:00.8]} 17. Bxh6 {[%clk 0:01:38.6]} 17... Qe7 {[%clk 0:00:56.2]}
18. Be6+ {[%clk 0:01:20.8]} 18... Kh8 {[%clk 0:00:54.5]} 19. Bg5 {[%clk
0:01:14.9]} 19... Qe8 {[%clk 0:00:51.2]} 20. Qh4+ {[%clk 0:01:11.9]} 1-0

[Event "*** SCC Grand Prix: Titled Tuesday Blitz"]
[Site "Chess.com"]
[Date "2020.08.25"]
[Round "5"]
[White "Supernotar"]
[Black "ChessWarrior7197"]
[Result "0-1"]
[WhiteElo "2727"]
[BlackElo "2922"]
[TimeControl "180+1"]
[EndTime "10:55:21 PDT"]
[Termination "ChessWarrior7197 won by resignation"]

1. d4 {[%clk 0:03:00.9]} 1... d5 {[%clk 0:02:58.7]} 2. c4 {[%clk 0:03:01.1]}
2... e6 {[%clk 0:02:58.8]} 3. Nf3 {[%clk 0:03:00.9]} 3... Nf6 {[%clk 0:02:57.7]}
4. e3 {[%clk 0:03:00.9]} 4... c6 {[%clk 0:02:57.1]} 5. Nbd2 {[%clk 0:03:00.5]}
5... Nbd7 {[%clk 0:02:55]} 6. Bd3 {[%clk 0:03:00.1]} 6... Bd6 {[%clk 0:02:54.5]}
7. O-O {[%clk 0:03:00.3]} 7... O-O {[%clk 0:02:54]} 8. e4 {[%clk 0:03:00.7]}
8... dxe4 {[%clk 0:02:53.8]} 9. Nxe4 {[%clk 0:03:01]} 9... Nxe4 {[%clk
0:02:54.7]} 10. Bxe4 {[%clk 0:03:01.6]} 10... Nf6 {[%clk 0:02:55.6]} 11. Bc2
{[%clk 0:03:01.7]} 11... b6 {[%clk 0:02:54.6]} 12. b3 {[%clk 0:03:01.8]} 12...
Bb7 {[%clk 0:02:54.2]} 13. Bb2 {[%clk 0:03:02.1]} 13... c5 {[%clk 0:02:54.1]}
14. dxc5 {[%clk 0:02:51.4]} 14... Bxc5 {[%clk 0:02:55]} 15. Qe2 {[%clk
0:02:51.3]} 15... Qc7 {[%clk 0:02:46]} 16. Rad1 {[%clk 0:02:18.6]} 16... Rad8
{[%clk 0:02:40]} 17. Ne5 {[%clk 0:01:40.7]} 17... Rxd1 {[%clk 0:02:29]} 18. Rxd1
{[%clk 0:01:40.3]} 18... Rd8 {[%clk 0:02:29.9]} 19. Ng4 {[%clk 0:01:29.4]} 19...
Nxg4 {[%clk 0:02:08]} 20. Qxg4 {[%clk 0:01:26.5]} 20... g6 {[%clk 0:02:06.3]}
21. Bf6 {[%clk 0:01:14.1]} 21... Rxd1+ {[%clk 0:02:05.5]} 22. Qxd1 {[%clk
0:01:14.1]} 22... Bxf2+ {[%clk 0:02:04.7]} 23. Kxf2 {[%clk 0:00:45.9]} 23...
Qf4+ {[%clk 0:02:02.4]} 24. Ke1 {[%clk 0:00:44.8]} 24... Qxf6 {[%clk 0:01:59.6]}
25. Qd7 {[%clk 0:00:44.1]} 25... Bxg2 {[%clk 0:01:58.6]} 26. Qxa7 {[%clk
0:00:43.5]} 26... Qc3+ {[%clk 0:01:58.1]} 27. Kd1 {[%clk 0:00:34.4]} 27... Bf3+
{[%clk 0:01:57.6]} 28. Kc1 {[%clk 0:00:34.3]} 28... Be4 {[%clk 0:01:58]} 29.
Qa8+ {[%clk 0:00:16.4]} 29... Bxa8 {[%clk 0:01:56.1]} 0-1

[Event "*** SCC Grand Prix: Titled Tuesday Blitz"]
[Site "Chess.com"]
[Date "2020.08.25"]
[Round "5"]
[White "ThePatrick27"]
[Black "salomez"]
[Result "1-0"]
[WhiteElo "2459"]
[BlackElo "2223"]
[TimeControl "180+1"]
[EndTime "10:55:22 PDT"]
[Termination "ThePatrick27 won by resignation"]

1. d4 {[%clk 0:03:00.9]} 1... Nf6 {[%clk 0:02:59.3]} 2. c4 {[%clk 0:03:01.3]}
2... g6 {[%clk 0:02:59.8]} 3. Nc3 {[%clk 0:03:01.8]} 3... d5 {[%clk 0:03:00.5]}
4. cxd5 {[%clk 0:03:02.7]} 4... Nxd5 {[%clk 0:03:00.9]} 5. e4 {[%clk 0:03:03.3]}
5... Nxc3 {[%clk 0:03:01.3]} 6. bxc3 {[%clk 0:03:04.2]} 6... Bg7 {[%clk
0:03:02]} 7. Be3 {[%clk 0:03:04.8]} 7... c5 {[%clk 0:03:02.5]} 8. Nf3 {[%clk
0:03:05.3]} 8... O-O {[%clk 0:02:58.7]} 9. Rc1 {[%clk 0:03:05.2]} 9... Bg4
{[%clk 0:02:43.7]} 10. Be2 {[%clk 0:03:04.5]} 10... Nd7 {[%clk 0:02:40.8]} 11.
Nd2 {[%clk 0:02:55.3]} 11... Bxe2 {[%clk 0:02:39.6]} 12. Qxe2 {[%clk 0:02:56.2]}
12... Rc8 {[%clk 0:02:16.9]} 13. O-O {[%clk 0:02:55.9]} 13... Nf6 {[%clk
0:02:01.6]} 14. dxc5 {[%clk 0:02:43.7]} 14... Qa5 {[%clk 0:01:56.5]} 15. Nb3
{[%clk 0:02:43.4]} 15... Qa4 {[%clk 0:01:56.5]} 16. f3 {[%clk 0:02:42.6]} 16...
Rfd8 {[%clk 0:01:45.9]} 17. Rfd1 {[%clk 0:02:31]} 17... Nd7 {[%clk 0:01:45.9]}
18. Bd4 {[%clk 0:02:26.2]} 18... e6 {[%clk 0:01:21.5]} 19. Bxg7 {[%clk
0:02:23.3]} 19... Kxg7 {[%clk 0:01:20.4]} 20. Rd4 {[%clk 0:02:20.6]} 20... Qc6
{[%clk 0:01:03.9]} 21. Rcd1 {[%clk 0:02:04.7]} 21... Qc7 {[%clk 0:00:36.4]} 22.
Qd2 {[%clk 0:02:04.1]} 22... Nxc5 {[%clk 0:00:12.8]} 23. Rxd8 {[%clk 0:02:03]}
23... Nxb3 {[%clk 0:00:12.6]} 24. Rxc8 {[%clk 0:01:50.7]} 24... Qb6+ {[%clk
0:00:06.7]} 25. Qf2 {[%clk 0:01:50.6]} 1-0

[Event "*** SCC Grand Prix: Titled Tuesday Blitz"]
[Site "Chess.com"]
[Date "2020.08.25"]
[Round "5"]
[White "Diego_FloresQ"]
[Black "Mbneu"]
[Result "0-1"]
[WhiteElo "2390"]
[BlackElo "2230"]
[TimeControl "180+1"]
[EndTime "10:55:23 PDT"]
[Termination "Mbneu won by resignation"]

1. e4 {[%clk 0:02:41.5]} 1... c5 {[%clk 0:02:57.7]} 2. Nf3 {[%clk 0:02:41.1]}
2... Nf6 {[%clk 0:02:56.5]} 3. e5 {[%clk 0:02:39.9]} 3... Nd5 {[%clk 0:02:53.9]}
4. Nc3 {[%clk 0:02:36.4]} 4... Nxc3 {[%clk 0:02:54.3]} 5. dxc3 {[%clk 0:02:24]}
5... Nc6 {[%clk 0:02:53.9]} 6. Bf4 {[%clk 0:02:14.9]} 6... e6 {[%clk 0:02:52.6]}
7. Qd2 {[%clk 0:02:00.3]} 7... Qc7 {[%clk 0:02:51.4]} 8. O-O-O {[%clk 0:01:50]}
8... h6 {[%clk 0:02:49.4]} 9. h4 {[%clk 0:01:40.4]} 9... a6 {[%clk 0:02:47.2]}
10. Kb1 {[%clk 0:01:29.4]} 10... b5 {[%clk 0:02:45.6]} 11. g4 {[%clk 0:01:27.3]}
11... Bb7 {[%clk 0:02:42.6]} 12. Bg2 {[%clk 0:01:21.3]} 12... Ne7 {[%clk
0:02:40]} 13. Bg3 {[%clk 0:01:14.3]} 13... Nd5 {[%clk 0:02:32.8]} 14. h5 {[%clk
0:01:08.5]} 14... c4 {[%clk 0:02:23.3]} 15. g5 {[%clk 0:01:06.2]} 15... b4
{[%clk 0:02:15.5]} 16. cxb4 {[%clk 0:00:35.2]} 16... c3 {[%clk 0:02:02.3]} 17.
bxc3 {[%clk 0:00:34.3]} 17... Nxc3+ {[%clk 0:01:58.9]} 18. Ka1 {[%clk 0:00:33]}
18... Bxb4 {[%clk 0:01:52.4]} 19. Rb1 {[%clk 0:00:29.5]} 19... Nxb1 {[%clk
0:01:34.5]} 20. Qxb4 {[%clk 0:00:25.7]} 20... Qc3+ {[%clk 0:01:34.9]} 21. Qxc3
{[%clk 0:00:24]} 21... Nxc3 {[%clk 0:01:35.8]} 22. g6 {[%clk 0:00:21.8]} 22...
fxg6 {[%clk 0:01:33.8]} 23. hxg6 {[%clk 0:00:22.7]} 23... O-O {[%clk 0:01:32.6]}
0-1

[Event "*** SCC Grand Prix: Titled Tuesday Blitz"]
[Site "Chess.com"]
[Date "2020.08.25"]
[Round "5"]
[White "Caterpiller35"]
[Black "Kaliopa"]
[Result "1-0"]
[WhiteElo "2346"]
[BlackElo "2192"]
[TimeControl "180+1"]
[EndTime "10:55:47 PDT"]
[Termination "Caterpiller35 won by resignation"]

1. e4 {[%clk 0:03:00.8]} 1... c5 {[%clk 0:02:59.6]} 2. Nc3 {[%clk 0:02:59.8]}
2... Nc6 {[%clk 0:02:59]} 3. Bb5 {[%clk 0:02:58.7]} 3... Nd4 {[%clk 0:02:58.7]}
4. Bc4 {[%clk 0:02:58]} 4... a6 {[%clk 0:02:57.8]} 5. d3 {[%clk 0:02:54.5]} 5...
b5 {[%clk 0:02:55.8]} 6. Bb3 {[%clk 0:02:52.6]} 6... e6 {[%clk 0:02:54.8]} 7.
Nge2 {[%clk 0:02:52.6]} 7... Ne7 {[%clk 0:02:52.9]} 8. Nxd4 {[%clk 0:02:50.8]}
8... cxd4 {[%clk 0:02:52.6]} 9. Ne2 {[%clk 0:02:50.7]} 9... Nc6 {[%clk
0:02:44.8]} 10. O-O {[%clk 0:02:48.9]} 10... Bc5 {[%clk 0:02:34.7]} 11. f4
{[%clk 0:02:48.2]} 11... O-O {[%clk 0:02:33.3]} 12. f5 {[%clk 0:02:47.6]} 12...
Ne5 {[%clk 0:01:52.5]} 13. Ng3 {[%clk 0:02:44.4]} 13... d5 {[%clk 0:01:41.6]}
14. f6 {[%clk 0:02:29.4]} 14... Bb7 {[%clk 0:01:21.1]} 15. Qh5 {[%clk
0:02:21.9]} 15... Ng6 {[%clk 0:01:05]} 16. fxg7 {[%clk 0:02:19]} 16... Re8
{[%clk 0:00:55.7]} 17. Rxf7 {[%clk 0:02:09.9]} 17... Kxf7 {[%clk 0:00:52.2]} 18.
Qxh7 {[%clk 0:02:08.7]} 18... Rg8 {[%clk 0:00:43.4]} 19. Bh6 {[%clk 0:02:05]}
19... Qh4 {[%clk 0:00:19.1]} 20. Rf1+ {[%clk 0:02:01.5]} 20... Ke7 {[%clk
0:00:19]} 21. Qxg6 {[%clk 0:02:00.2]} 21... Rae8 {[%clk 0:00:07.2]} 22. Bg5+
{[%clk 0:01:48.5]} 22... Qxg5 {[%clk 0:00:05.5]} 23. Qxg5+ {[%clk 0:01:49.4]}
23... Kd7 {[%clk 0:00:04.6]} 24. exd5 {[%clk 0:01:44.7]} 24... exd5 {[%clk
0:00:02.7]} 25. Bxd5 {[%clk 0:01:44.3]} 25... Be7 {[%clk 0:00:01.4]} 26. Qf5+
{[%clk 0:01:42.6]} 26... Kd8 {[%clk 0:00:02.1]} 27. Bxb7 {[%clk 0:01:42.1]} 1-0

[Event "*** SCC Grand Prix: Titled Tuesday Blitz"]
[Site "Chess.com"]
[Date "2020.08.25"]
[Round "5"]
[White "Anton_Demchenko"]
[Black "Meri-Arabidze"]
[Result "1-0"]
[WhiteElo "2840"]
[BlackElo "2600"]
[TimeControl "180+1"]
[EndTime "10:55:55 PDT"]
[Termination "Anton_Demchenko won on time"]

1. e4 {[%clk 0:03:00.9]} 1... c5 {[%clk 0:02:59.4]} 2. Nc3 {[%clk 0:02:59.7]}
2... e6 {[%clk 0:03:00.3]} 3. Nf3 {[%clk 0:02:58.5]} 3... Nc6 {[%clk 0:03:00.5]}
4. d4 {[%clk 0:02:58.9]} 4... cxd4 {[%clk 0:03:00.3]} 5. Nxd4 {[%clk 0:02:59.8]}
5... a6 {[%clk 0:03:01]} 6. g3 {[%clk 0:02:59.7]} 6... Qc7 {[%clk 0:02:58.2]} 7.
Bg2 {[%clk 0:02:59.5]} 7... Nf6 {[%clk 0:02:58.8]} 8. O-O {[%clk 0:02:59]} 8...
Bc5 {[%clk 0:02:59]} 9. Bf4 {[%clk 0:02:51.4]} 9... Ne5 {[%clk 0:02:48.6]} 10.
Bxe5 {[%clk 0:02:50.4]} 10... Qxe5 {[%clk 0:02:47.6]} 11. Nf3 {[%clk 0:02:51.3]}
11... Qc7 {[%clk 0:02:39.8]} 12. e5 {[%clk 0:02:51.3]} 12... Ng4 {[%clk
0:02:30.9]} 13. Qe2 {[%clk 0:02:51.5]} 13... f5 {[%clk 0:02:16.7]} 14. exf6
{[%clk 0:02:48.6]} 14... Nxf6 {[%clk 0:02:16.4]} 15. Ng5 {[%clk 0:02:48.8]}
15... O-O {[%clk 0:02:09.1]} 16. Nce4 {[%clk 0:02:41.4]} 16... Be7 {[%clk
0:02:06]} 17. c4 {[%clk 0:02:40.3]} 17... Rb8 {[%clk 0:02:02]} 18. Rac1 {[%clk
0:02:39]} 18... b6 {[%clk 0:02:00.5]} 19. Rfd1 {[%clk 0:02:12.1]} 19... Bb7
{[%clk 0:01:55]} 20. h4 {[%clk 0:02:04.9]} 20... h6 {[%clk 0:01:33]} 21. Nxf6+
{[%clk 0:01:49.4]} 21... Bxf6 {[%clk 0:01:33.9]} 22. Bxb7 {[%clk 0:01:44.5]}
22... hxg5 {[%clk 0:01:30.6]} 23. Be4 {[%clk 0:01:44.1]} 23... gxh4 {[%clk
0:00:42.4]} 24. Qh5 {[%clk 0:01:43.8]} 24... Qe5 {[%clk 0:00:41.9]} 25. Qh7+
{[%clk 0:01:27.6]} 25... Kf7 {[%clk 0:00:41.6]} 26. Rxd7+ {[%clk 0:01:28.4]}
26... Ke8 {[%clk 0:00:41.2]} 27. Rcd1 {[%clk 0:01:26.7]} 1-0